{"text_format":"1","workbook":"xlsx","n_sheets":7,"sheets":["Zadání","Výpočet u navrhovatele","2. z manželů","Společné oddlužení manželů","Přímé zadání splátky","Výpočet průměrného příjmu","Cestovné"],"not_rendered":{"charts":0,"images":0,"macros":0,"external_links":0,"defined_names":4,"comments":7,"pivot_tables":0},"unopened":[],"bounds":{"document_bytes":16777216,"sheet_cells":100000,"rows_first":2000,"rows_last":500,"rows_between":2000,"halvings":0,"cell_chars":16384,"cell_head_chars":4096},"cells_cut":0,"cells_raw":0,"read":"whole","date_system":"1900"}

{"sheet":"Zadání","index":0,"n_rows":23,"n_cols":14,"rows_kept":23,"cut":false,"hidden":false,"merged":[[22,1,22,8],[20,1,20,8],[0,0,0,9],[2,2,2,4],[2,6,3,6],[2,9,3,9],[2,7,3,7],[18,1,18,8],[19,1,19,8],[11,3,11,4],[2,8,3,8],[17,1,17,4]]}
["Zadávací list"]
["Oddlužení od 1. 6. 2019"]
[null,null,"Příjmy z pracovního poměru a důchody",null,null,null,"Příspěvek ke splátkám","Běžné výživné\n placené IS","DLUŽNÉ výživné\n placené IS","počet vyživ. osob",null,{"$f":"INT(L5/3*2*100)/100","v":12857.33},"životní minimum=2/3 u částky  L5"]
[null,null,"čistá mzda","důchod nebo jiný příjem","příjem celkem",null,null,null,null,null,null,{"$f":"INT(L3/4*100+1)/100/2","v":1607.17},"Na vyživovanou osobu = 1/4 z L1"]
["Jméno navrhovatele",null,null,null,{"$f":"C5+D5","v":0},null,null,null,null,null,null,{"$f":"(3410+6233)*2","v":19286},"Součet životního minima 3.410,--Kč a nákladů na bydlení 6.233,--Kč (nařízení vlády 320/2018 Sb.)"]
["Jméno manžela/ky/",null,null,null,{"$f":"C6+D6","v":0},null,null,null,null,null,null,{"$f":"(INT(L5/3*100+1))/100","v":6428.67},"jedna třetina  z L5 na poměření srážek"]
["společné označení",null,null,null,null,null,null,null,60]
[]
["Počet přezk. přihlášek",null,null,null,null,null,null,null,null,null,null,null,2017,2018]
["Odměna za sepis",{"$f":"IF(J12=\"x\",6000*(1+I11),(IF(J12=\"X\",6000*(1+I11),4000*(1+I11))))","v":4840},null,null,"odměna vč. DPH",null,"odměna","pauš. náklady","DPH",null,null,null,6154.67,6225.33]
["Náklady na posudek",null,null,"Odměna IS vč. DPH",{"$f":"(G11+H11)*(I11+1)","v":1089},null,750,150,0.21,null,null,null,1538.67,1556.33]
[null,null,null,"zvýš. odměny IS za manžele či jiného důvodu",null,null,{"$f":"IF(J12=\"x\",50%,(IF(J12=\"X\",50,0)))","v":0},{"$f":"G12","v":0},"manželé",null,null,null,9232,9338]
["Výše pohledávek za navrh. bez podřízených pohl.",null,"BEZ DUPLICIT!!!!!!!","Odměna IS za manžele",{"$f":"IF((G13+H13)*(I13+1)>1089,(G13+H13)*(I13+1)+0.5,(G13+H13)*(I13+1))","v":1089},null,{"$f":"G11*(100%+G12)","v":750},150,0.21,null,null,null,3077,3112.66]
["Výše pohledávek za manželem(kou)\n bez podřízených pohl.",null,null,"Odměna za přezk. přihl.",{"$f":"G14+G14*I14","v":302.5},null,250,null,0.21]
["Celková výše pohledávek za manžely",{"$f":"SUM(B13:B14)","v":0}]
[]
[]
[null,"NÁVOD:\nVyplňte údaje v zelených polích, pokud pro ně existují  podklady, či mají pro výpočet být vyplněny.\nDo společných závazků vkládat společnou částku bez duplicit."]
[null,"Upravy 2018:\nNově vloženo zaškrtávací pole pro manžele- automatické zvýšení o 50%.\nVe výpočtech je pro tento případ zadáváno u každého z manželů 50% ze zvýšené částky.\nDo tabulky \"Přímé zadání splátky\" je přidán pomocník pro zjednodušení výpočtu splátky - automaticky je nastaven na 30%.\nPokud potřebujete jinou procentní sazbu změnte ji přepsáním. Současně se Vám pod minimální splátkou objeví, jak vysoký by měl být případný příspěvek.\nPřidáno políčko na počet přihlášek - zobrazí se ve výpočtu 250,- Kč + DPH za každou přihlášku. Přihlášky se zobrazí jen u jednoho (prvého) z manželů.\nZobrazeno políčko nákladů za posudek. Zobrazí se jen u prvého z manželů."]
[null,"Přidáno políčko za zpracování návrhu. Zobrazí se pouze u prvého z manželů."]
[null,"Úpravy 2019:\nPřidána políčka pro započtení odměny za přihlášky, odměny za zpracování insolvenčního návrhu a nákladů za zpracování znaleckého posudku. Tyto náklady jsou u prvého z manželů rozpočítány do 60 splátek, takže výsledek výpočtu, kterým se stanovuje výše uspokojení nezajištěných věřitelů je od těchto nákladů odbřemeněna."]
[null,"Novela 2019"]
[null,"Doplněn automatický výpočet za podaný návrh. Pokud není přihlášen zadejte nulu."]

{"sheet":"Výpočet u navrhovatele","index":1,"n_rows":37,"n_cols":6,"rows_kept":37,"cut":false,"hidden":false,"merged":[[0,0,0,1],[33,0,33,1],[5,4,7,4]]}
["Výpočet oddlužení"]
[]
["Dlužník:  "]
[{"$f":"Zadání!B5","v":0}]
[null,null,null,null,"Návod:"]
["Přihlášené pohledávky celkem",{"$f":"Zadání!B13","v":0},null,null,"Proveď kontrolu zadaných (oranžových) polí."]
[]
["Čistý příjem",{"$f":"Zadání!E5","v":0}]
[]
["domácnost + dlužník",{"$f":"Zadání!L6","v":6428.67}]
["děti či jiné osoby             počet",{"$f":"Zadání!J5","v":0}]
["děti či jiné osoby           částka",{"$f":"Zadání!L4","v":1607.17},null,null,null,{"$f":"Zadání!L5","v":19286}]
["děti či jiné osoby           celkem",{"$f":"B12*B11","v":0}]
["Celkem nezabavitelná část",{"$f":"IF((B13+B10)-INT(B13+B10)=0,(B13+B10),INT(B13+B10)+1)","v":6429}]
[]
["Zbývající část čisté mzdy",{"$f":"B8-B14","v":-6429}]
["Neomezeně srazitelná část",{"$f":"IF(B$16<=F$12,0,B$16-F$12)","v":0}]
["Zabavitelné třetiny",{"$f":"IF(B$16<=F$12,INT(B16/3),INT(Zadání!L6))","v":-2143}]
["Součet srazitelných částek",{"$f":"(B17+B18*2)","v":-4286}]
["Mzda",{"$f":"IF(B19<0,B8,IF(B11=2,B8-B19-1,B8-B19))","v":0}]
[]
["Zabavitelná část",{"$f":"IF(B19<0,0,B19)","v":0}]
["Příspěvek na spl. od 3 osoby",{"$f":"Zadání!G5","v":0}]
["Výživné hrazené IS",{"$f":"Zadání!H5+(Zadání!I5/Zadání!I7)","v":0}]
["Odměna za přihlášky",{"$f":"Zadání!B9*Zadání!E14","v":0}]
["Odměna za sepis",{"$f":"Zadání!B10","v":4840}]
["Náklady na posudek",{"$f":"Zadání!B11","v":0}]
["Odměna a náklady správce",{"$f":"IF(Zadání!J12=\"x\",Zadání!E13/2,(IF(Zadání!J12=\"X\",Zadání!E13/2,Zadání!E13)))","v":1089}]
["Měsíční částka připadající na splátky",{"$f":"IF((B22-B28-B24+B23)<0.0001,0,B22-B28-B24+B23)","v":0}]
[]
["Dlužník uhradí za 5 let (sníženo o odměnu IS za přihlášky)",{"$f":"B29*60-B25-B26-B27","v":-4840}]
[]
[]
[{"$f":"IF(B31>(B6/100*30),\"Oddlužení je možné.\",\"Nelze oddlužit.\")","v":"Nelze oddlužit."}]
[]
["Předpokládaná výše uspokojení v %",{"$f":"IF(B31>0,B31/(B6),0)","v":0}]
["Doba splácení v měsících, pokud uspokojení přesahuje 100%",{"$f":"IF(B36>=100%,INT(B6/B29)+1,\"Více než 60 měsíců\")","v":"Více než 60 měsíců"}]

{"sheet":"2. z manželů","index":2,"n_rows":34,"n_cols":6,"rows_kept":34,"cut":false,"hidden":false,"merged":[[0,0,0,1],[30,0,30,1],[5,4,7,4]]}
["Výpočet oddlužení"]
[]
["Dlužník:  "]
[{"$f":"Zadání!B6","v":0}]
[null,null,null,null,"Návod:"]
["Přihlášené pohledávky celkem",{"$f":"Zadání!B14","v":0},null,null,{"$f":"'Výpočet u navrhovatele'!E6:E8","v":"Proveď kontrolu zadaných (oranžových) polí."}]
[]
["Čistý příjem",{"$f":"Zadání!E6","v":0}]
[]
["domácnost + dlužník",{"$f":"Zadání!L6","v":6428.67}]
["děti či jiné osoby             počet",{"$f":"Zadání!J6","v":0}]
["děti či jiné osoby           částka",{"$f":"Zadání!L4","v":1607.17},null,null,null,{"$f":"Zadání!L5","v":19286}]
["děti či jiné osoby           celkem",{"$f":"B12*B11","v":0}]
["Celkem nezabavitelná část",{"$f":"IF(INT(B13+B10)-(B13+B10)=0,(B13+B10),INT(B13+B10)+1)","v":6429}]
[]
["Zbývající část čisté mzdy",{"$f":"B8-B14","v":-6429}]
["Neomezeně srazitelná část",{"$f":"IF(B$16<=F$12,0,B$16-F$12)","v":0}]
["Zabavitelné třetiny",{"$f":"IF(B$16<=F$12,INT(B16/3),INT(Zadání!L6))","v":-2143}]
["Součet srazitelných částek",{"$f":"B17+B18*2","v":-4286}]
["Mzda",{"$f":"IF(B19<0,B8,IF(B11=2,B8-B19-1,B8-B19))","v":0}]
[]
["Zabavitelná část",{"$f":"IF(B19<0,0,B19)","v":0}]
["Příspěvek na spl. od 3 osoby",{"$f":"Zadání!G6","v":0}]
["Výživné hrazené IS",{"$f":"Zadání!H6+(Zadání!I6/Zadání!I7)","v":0}]
["Odměna a náklady správce",{"$f":"IF(Zadání!J12=\"x\",Zadání!E13/2,(IF(Zadání!J12=\"X\",Zadání!E13/2,0)))","v":0}]
["Měsíční částka připadající na splátky",{"$f":"IF((B22-B25-B24+B23)<0.0001,0,B22-B25-B24+B23)","v":0}]
[]
["Dlužník uhradí za 5 let (sníženo o odměnu IS za přihlášky)",{"$f":"B26*60","v":0}]
[]
[]
[{"$f":"IF(B28>(B6/100*30),\"Oddlužení je možné.\",\"Nelze oddlužit.\")","v":"Nelze oddlužit."}]
[]
["Předpokládaná výše uspokojení v %",{"$f":"IF(B28>0,B28/(B6),0)","v":0}]
["Doba splácení v měsících, pokud uspokojení přesahuje 100%",{"$f":"IF(B33>=100%,INT(B6/B26)+1,\"Více než 60 měsíců\")","v":"Více než 60 měsíců"}]

{"sheet":"Společné oddlužení manželů","index":3,"n_rows":27,"n_cols":5,"rows_kept":27,"cut":false,"hidden":false,"merged":[[0,0,0,1],[5,4,13,4],[23,0,23,1]]}
["Výpočet oddlužení"]
[]
["Dlužník:  "]
[{"$f":"Zadání!B7","v":0}]
[null,null,null,null,"Návod:"]
["Přihlášené pohledávky celkem",{"$f":"Zadání!B15","v":0},null,null,"Tabulka automaticky načítá kladné hodnoty z předchozích tabulek. Měnit lze pouze odměnu IS, pokud by mu náležela v jiné výši, než je uvedeno na listu zadání. "]
[]
["Čistý příjem obou manželů",{"$f":"IF('Výpočet u navrhovatele'!B8<0,0,'Výpočet u navrhovatele'!B8)+IF('2. z manželů'!B8<0,0,'2. z manželů'!B8)","v":0}]
[]
["Mzda (součet zbytku mezd)",{"$f":"IF('Výpočet u navrhovatele'!B20=0,'Výpočet u navrhovatele'!B8,'Výpočet u navrhovatele'!B20)+IF('2. z manželů'!B20=0,'2. z manželů'!B8,'2. z manželů'!B20)","v":0}]
[]
["Zabavitelná část u obou manželů",{"$f":"'Výpočet u navrhovatele'!B22+'2. z manželů'!B22","v":0}]
["Příspěvek na splátky od 3 osoby ",{"$f":"'Výpočet u navrhovatele'!B23+'2. z manželů'!B23","v":0}]
["Výživné hrazené IS",{"$f":"'Výpočet u navrhovatele'!B24+'2. z manželů'!B24","v":0}]
["Odměna za přihlášky",{"$f":"'Výpočet u navrhovatele'!B25","v":0}]
[{"$f":"'Výpočet u navrhovatele'!A26","v":"Odměna za sepis"},{"$f":"'Výpočet u navrhovatele'!B26","v":4840}]
[{"$f":"'Výpočet u navrhovatele'!A27","v":"Náklady na posudek"},{"$f":"'Výpočet u navrhovatele'!B27","v":0}]
["Odměna a náklady správce",{"$f":"'Výpočet u navrhovatele'!B28+'2. z manželů'!B25","v":1089}]
["Měsíční částka připadající na splátky",{"$f":"IF((B12+B13-B18-B14)<0.0001,0,B12+B13-B18-B14)","v":0}]
[]
["Dlužník uhradí za 5 let (sníženo o odměnu IS za přihlášky)",{"$f":"B19*60-B15-B16-B17","v":-4840}]
[]
[]
[{"$f":"IF(B21>(B6/100*30),\"Oddlužení je možné.\",\"Nelze oddlužit.\")","v":"Nelze oddlužit."}]
[]
["Předpokládaná výše uspokojení v %",{"$f":"IF(B21>0,B21/(B6),0)","v":0}]
["Doba splácení v měsících, pokud uspokojení přesahuje 100%",{"$f":"IF(B26>=100%,INT(B6/B19)+1,\"Více než 60 měsíců\")","v":"Více než 60 měsíců"}]

{"sheet":"Přímé zadání splátky","index":4,"n_rows":24,"n_cols":7,"rows_kept":24,"cut":false,"hidden":false,"merged":[[0,0,0,1],[20,0,20,1],[5,4,15,4]]}
["Výpočet oddlužení"]
[]
["Dlužník:  "]
[{"$f":"IF(Zadání!B7=0,Zadání!B5,Zadání!B7)","v":0}]
[null,null,null,null,"Návod:"]
["Přihlášené pohledávky celkem",{"$f":"'Společné oddlužení manželů'!B6","v":0},null,null,"Tabulka slouží k výpočtu snížených splátek, nebo výpočtu minimální splátky, aby byla splněna zákonná hranice 30%.\nVyplň do řádku plánovaná splátka čásku, jíž by měl dlužník platit"]
[]
["Část příjmu, jež dlužníkům zůstane",{"$f":"'Společné oddlužení manželů'!B8-B10","v":-1000}]
[]
["Zabavitelná část/Plánovaná splátka",1000]
["Výživné hrazené IS",{"$f":"'Společné oddlužení manželů'!B14","v":0}]
["Odměna za přihlášky",{"$f":"'Společné oddlužení manželů'!B15","v":0}]
["Odměna za sepis",{"$f":"'Společné oddlužení manželů'!B16","v":4840}]
["Náklady na posudek",{"$f":"'Společné oddlužení manželů'!B17","v":0}]
["Odměna a náklady správce",{"$f":"IF(Zadání!E13>Zadání!E11,Zadání!E13,Zadání!E11)","v":1089}]
["Měsíční částka připadající na splátky",{"$f":"B10-B15-B11","v":-89},null,null,null,"Počet splátek pro výpočet",60]
[]
["Dlužník uhradí za 5 let (sníženo o odměnu IS za přihlášky)",{"$f":"B16*60-B12-B13-B14","v":-10180},null,null,"Pomocník:"]
[]
[null,null,null,null,"Kolik procent má dlužník splnit?",0.3]
[{"$f":"IF(B18>(B6/100*30),\"Oddlužení je možné.\",\"Nelze oddlužit.\")","v":"Nelze oddlužit."},null,null,null,"Výše splátky",{"$f":"B6*F20/60+B15+B11+(B12+B13+B14)/G16","v":1169.6666666666667}]
[null,null,null,null,"Manželům je možno srazit",{"$f":"'Výpočet u navrhovatele'!B22+'2. z manželů'!B22","v":0}]
["Předpokládaná výše uspokojení v %",{"$f":"IF(B18>0,B18/(B6),0)","v":0},null,null,"Bude potřeba příspěvek? Kolik?",{"$f":"IF(('Výpočet u navrhovatele'!B22+'2. z manželů'!B22-'Přímé zadání splátky'!F21)>0,0,'Přímé zadání splátky'!F21-'Výpočet u navrhovatele'!B22-'2. z manželů'!B22)","v":1169.6666666666667}]
["Doba splácení v měsících, pokud uspokojení přesahuje 100%",{"$f":"IF(B23>=100%,INT(B6/B16)+1,\"Více než 60 měsíců\")","v":"Více než 60 měsíců"}]

{"sheet":"Výpočet průměrného příjmu","index":5,"n_rows":17,"n_cols":5,"rows_kept":17,"cut":false,"hidden":false,"merged":[]}
["Výpočet průměrného příjmu dlužníka za posledních 6 měsíců"]
[]
[null,null,null,"počet měsíců",6]
[]
[]
[]
[]
[]
[null,{"$f":"SUM(B3:B8)","v":0},"celkem"]
[]
[]
[null,{"$f":"B9/E3","v":0},"Průměrný příjem"]
[]
[null,null,"Mimořádné odměny"]
[]
[]
[null,{"$f":"(B9-B14)/E3","v":0},"průměrný příjem bez odměn"]

{"sheet":"Cestovné","index":6,"n_rows":24,"n_cols":15,"rows_kept":24,"cut":false,"hidden":false,"merged":[[1,10,1,11],[1,13,1,14],[2,0,2,2],[4,3,4,5],[5,3,5,5],[1,0,1,2],[1,3,2,3],[1,4,2,4],[1,5,2,5]]}
[]
["Vyúčtování nákladů IS za období od zjištění úpadku do přezkumu ",null,null,null,null,null,null,null,null,null,null,null,null,{"$f":"K2","v":0}]
[null,null,null,null,null,null,null,null,null,null,"1. jízda km",240,null,"1. jízda km",156]
[null,null,null,null,null,null,null,null,null,null,"počet jízd",1,null,"počet jízd",1]
["Cestovné",null,{"$f":"L13","v":1773},null,null,null,null,null,null,null,"cena benz./nafty",33.6,null,"cena benz./nafty",33.6]
["cestovné k soudu a zpět",null,{"$f":"O13","v":1152}]
["Součet",null,{"$f":"SUM(C5:C6)","v":2925},null,null,null,null,null,null,null,"základ",4.0999999999999996,null,"základ",4.0999999999999996]
["DPH 21%",null,295.68,null,null,null,null,null,null,null,"základ celkem",{"$f":"L7*L3*L4","v":983.99999999999989},null,"základ celkem",{"$f":"O7*O3*O4","v":639.59999999999991}]
["Náklady celkem",null,{"$f":"C7+C8","v":3220.68},null,null,null,null,null,null,null,"® na 100 km",{"$f":"(12.4+7.6+9.4)/3","v":9.7999999999999989},null,"® na 100 km",{"$f":"(12.4+7.6+9.4)/3","v":9.7999999999999989}]
["Po zaokrouhlení",null,{"$f":"INT(C9)","v":3220},null,null,null,null,null,null,null,"benzín na km",{"$f":"INT(L9*L5)/100","v":3.29},null,"benzín na km",{"$f":"INT(O9*O5)/100","v":3.29}]
[null,null,null,null,null,null,null,null,null,null,"za benzín celkem",{"$f":"L10*L3*L4","v":789.6},null,"za benzín celkem",{"$f":"O10*O3*O4","v":513.24}]
[null,null,null,null,null,null,null,null,null,null,"jedna cesta",{"$f":"INT((L7+L10)*L3)","v":1773},null,"jedna cesta",{"$f":"INT((O7+O10)*O3)","v":1152}]
[null,null,null,null,null,null,null,null,null,null,"celkem cesty",{"$f":"L12*L4","v":1773},null,"celkem cesty",{"$f":"O12*O4","v":1152}]
[]
[null,null,null,null,null,null,null,null,null,null,"kontrolní součet",{"$f":"L8+L11-L13","v":0.59999999999990905}]
[]
[]
[]
[null,null,null,null,null,null,null,null,null,null,"Výše sazby základní náhrady za používání osobních motorových vozidel se od 1. ledna 2019 vyhláškou č. 463/2017 Sb , a činí 4,10 Kč. "]
[]
[null,null,null,null,null,null,null,null,null,null,"Průměrné ceny pohonných hmot jsou následující:"]
[null,null,null,null,null,null,null,null,null,null,"a) 33,10 Kč u benzinu automobilového 95 oktanů,"]
[null,null,null,null,null,null,null,null,null,null,"b) 37,10 Kč u benzinu automobilového 98 oktanů,"]
[null,null,null,null,null,null,null,null,null,null,"c) 33,60 Kč u motorové nafty."]